[Event "Polugaevsky Memorial 2018"]
[Site "Samara"]
[Date "2018.07.12"]
[Round "3"]
[White "Kopylov, Alexander A"]
[Black "Fedorov, Alexey A"]
[Result "1/2-1/2"]
[ECO "E70"]
[WhiteElo "2431"]
[BlackElo "1399"]
[Annotator "NA"]
[PlyCount "107"]
[EventDate "2018.07.10"]
[EventType "swiss"]
[EventCountry "RUS"]
[SourceTitle "playchess.com"]
[Source "ChessBase"]
[SourceQuality "1"]
[TimeControl "40/5400+30:1800+30"]

1. d4 {[%emt 0:10:25]} Nf6 {[%emt 0:00:00]} 2. c4 {[%emt 0:00:08]} g6 {[%emt 0:00:30]} 3. Nc3 {[%emt 0:00:12]} Bg7 {[%emt 0:00:22]} 4. e4 {[%emt 0:00:11]} d6 {[%emt 0:00:11]} 5. Bd3 {[%emt 0:00:26]} c5 {[%emt 0:08:46]} 6. d5 {[%emt 0:04:41]} e6 {[%emt 0:00:44]} 7. h3 {[%emt 0:25:36]} O-O {[%emt 0:00:14]} 8. Nge2 {[%emt 0:05:23]} exd5 {[%emt 0:11:16]} 9. exd5 {[%emt 0:00:07]} Nfd7 {[%emt 0:01:26]} 10. f4 {[%emt 0:04:06] LiveBook: 23 Games} Re8 {[%emt 0:03:16]} 11. O-O {[%emt 0:01:57]} f5 {[%emt 0:00:43]} 12. Bd2 {[%emt 0:03:44]} Na6 {[%emt 0:04:43]} 13. a3 {[%emt 0:20:11]} Nc7 {[%emt 0:06:33]} 14. Qc2 {[%emt 0:04:25]} a6 {[%emt 0:04:07]} 15. a4 {[%emt 0:00:50]} b6 $11 {[%emt 0:03:15]} 16. Rae1 {[%emt 0:08:46]} Nf6 {[%emt 0:04:57]} 17. Ng3 {[%emt 0:00:47]} Bd7 {[%emt 0:04:37]} 18. Rxe8+ {[%emt 0:01:33]} Nfxe8 {[%emt 0:11:09]} 19. Nge2 {[%emt 0:00:16]} Rb8 {[%emt 0:05:13]} 20. b3 {[%emt 0:00:10]} b5 {[%emt 0:00:40]} 21. Rf3 {[%emt 0:04:00]} Qc8 {[%emt 0:10:22]} 22. Rf1 {[%emt 0:00:31]} Nf6 {[%emt 0:01:34]} 23. Ng3 {[%emt 0:00:19]} Qb7 {[%emt 0:09:40]} 24. Rb1 {[%emt 0:00:20]} Re8 {[%emt 0:02:31]} 25. Re1 {[%emt 0:00:09]} Qb8 {[%emt 0:01:28]} 26. Kf1 {[%emt 0:00:05]} Rxe1+ {[%emt 0:01:06]} 27. Bxe1 {[%emt 0:00:21]} Kf8 {[%emt 0:01:58]} 28. Qa2 {[%emt 0:02:09]} b4 {[%emt 0:00:50]} 29. Nd1 {[%emt 0:00:21]} a5 {[%emt 0:00:59]} 30. Qc2 {[%emt 0:00:20]} Qe8 {[%emt 0:00:49]} 31. Qe2 {[%emt 0:00:07]} Qxe2+ {[%emt 0:00:08]} 32. Kxe2 {[%emt 0:00:52]} Na8 {[%emt 0:00:05]} 33. Bc2 {[%emt 0:00:44]} Nb6 {[%emt 0:00:10]} 34. Ne3 {[%emt 0:00:26]} Ne8 {[%emt 0:00:14]} 35. Ngf1 {[%emt 0:00:40]} Nc7 {[%emt 0:00:50]} 36. Bh4 {[%emt 0:00:50]} Ke8 {[%emt 0:01:33]} 37. g4 {[%emt 0:00:17]} fxg4 {[%emt 0:00:29]} 38. hxg4 {[%emt 0:00:03]} Nca8 {[%emt 0:00:18]} 39. Nd2 {[%emt 0:02:21]} Bd4 {[%emt 0:00:27]} 40. Ne4 {[%emt 0:00:00]} Nc8 {[%emt 0:00:00]} 41. f5 {[%emt 0:07:19]} Nab6 {[%emt 0:04:00]} 42. Nf6+ {[%emt 0:05:05]} Bxf6 {[%emt 0:00:46]} 43. Bxf6 {[%emt 0:00:02]} Ne7 {[%emt 0:00:58]} 44. Kf3 {[%emt 0:05:13]} gxf5 {[%emt 0:06:05]} 45. gxf5 {[%emt 0:00:25]} Ng8 {[%emt 0:01:51]} 46. Bh4 {[%emt 0:00:51]} Nc8 {[%emt 0:01:04]} 47. Kf4 {[%emt 0:12:09]} Nce7 {[%emt 0:00:33]} 48. Nf1 {[%emt 0:00:25]} Nh6 {[%emt 0:01:41]} 49. Ng3 {[%emt 0:00:16]} Kf8 {[%emt 0:03:14]} 50. Bg5 {[%emt 0:02:57]} Nf7 {[%emt 0:00:14]} 51. Bf6 {[%emt 0:00:14]} Nh6 {[%emt 0:02:11]} 52. Bg5 {[%emt 0:00:03]} Nf7 {[%emt 0:00:04]} 53. Bf6 {[%emt 0:01:35]} Nh6 {[%emt 0:00:11]} 54. Bg5 {[%emt 0:00:47]} 1/2-1/2

[Event "Polugaevsky Memorial 2018"]
[Site "Samara"]
[Date "2018.07.12"]
[Round "3"]
[White "Lugovskoy, Maxim"]
[Black "Frolyanov, Dmitry"]
[Result "1/2-1/2"]
[ECO "B22"]
[WhiteElo "2391"]
[BlackElo "2540"]
[Annotator "RC"]
[PlyCount "109"]
[EventDate "2018.07.10"]
[EventType "swiss"]
[EventCountry "RUS"]
[SourceTitle "playchess.com"]
[Source "ChessBase"]
[SourceQuality "1"]
[TimeControl "40/5400+30:1800+30"]

1. e4 {[%emt 0:00:00]} c5 {[%emt 0:00:00]} 2. c3 {[%emt 0:00:00]} Nf6 {[%emt 0:00:00]} 3. e5 {[%emt 0:00:00]} Nd5 {[%emt 0:00:00]} 4. d4 {[%emt 0:00:00]} cxd4 {[%emt 0:00:02]} 5. cxd4 {[%emt 0:00:00]} d6 {[%emt 0:01:24]} 6. Nf3 {[%emt 0:00:01]} Nc6 {[%emt 0:01:09]} 7. Bc4 {[%emt 0:00:04]} Nb6 {[%emt 0:00:25]} 8. Bb3 {[%emt 0:00:06]} dxe5 {[%emt 0:00:14]} 9. d5 {[%emt 0:00:07]} Na5 {[%emt 0:00:38]} 10. Nc3 {[%emt 0:00:05]} f6 {[%emt 0:00:15]} 11. Be3 {[%emt 0:00:04]} Bd7 {[%emt 0:00:20]} 12. Bc2 {[%emt 0:05:40]} g6 {[%emt 0:02:06]} 13. h4 {[%emt 0:00:47]} Bg4 {[%emt 0:08:46]} 14. Qb1 {[%emt 0:07:01]} Bxf3 {[%emt 0:11:28]} 15. gxf3 {[%emt 0:00:56]} f5 {[%emt 0:00:53]} 16. h5 {[%emt 0:02:07]} Bg7 {[%emt 0:01:01]} 17. hxg6 {[%emt 0:05:06]} hxg6 {[%emt 0:00:05]} 18. Rxh8+ {[%emt 0:00:01]} Bxh8 {[%emt 0:00:06]} 19. Bxf5 {[%emt 0:00:24]} gxf5 {[%emt 0:00:09]} 20. Qxf5 {[%emt 0:00:04]} Bf6 {[%emt 0:04:41]} 21. O-O-O {[%emt 0:04:55]} Qc8 {[%emt 0:05:48]} 22. Qg6+ {[%emt 0:00:56]} Kd7 {[%emt 0:00:15]} 23. d6 {[%emt 0:01:46]} Qc4 {[%emt 0:08:50]} 24. Qf5+ {[%emt 0:29:07]} Ke8 {[%emt 0:00:49]} 25. Kb1 {[%emt 0:03:31]} Nc6 {[%emt 0:06:09]} 26. Ne4 {[%emt 0:05:51]} Nb4 {[%emt 0:04:49]} 27. Qh5+ {[%emt 0:00:51]} Qf7 {[%emt 0:02:22]} 28. dxe7 {[%emt 0:00:31]} Qxh5 {[%emt 0:03:29]} 29. Nxf6+ {[%emt 0:00:05]} Kxe7 {[%emt 0:00:04]} 30. Nxh5 {[%emt 0:00:03]} N4d5 {[%emt 0:00:32]} 31. Bc5+ {[%emt 0:02:27]} Ke6 {[%emt 0:00:31]} 32. Ng3 {[%emt 0:00:04]} Nd7 {[%emt 0:05:30]} 33. Ne4 {[%emt 0:04:15]} b6 {[%emt 0:00:23]} 34. Ba3 {[%emt 0:03:31]} N7f6 {[%emt 0:00:18]} 35. Re1 {[%emt 0:02:26]} Rg8 {[%emt 0:01:45]} 36. b3 {[%emt 0:05:44]} Rg2 {[%emt 0:02:57]} 37. Nxf6 {[%emt 0:05:38]} Kxf6 {[%emt 0:00:25]} 38. Bb2 {[%emt 0:00:06]} Rxf2 {[%emt 0:03:50]} 39. f4 {[%emt 0:01:37]} Nxf4 {[%emt 0:00:33]} 40. Bxe5+ {[%emt 0:00:00]} Kf7 {[%emt 0:00:00]} 41. Bxf4 {[%emt 0:01:10]} Rxf4 {[%emt 0:00:11]} 42. Kb2 {[%emt 0:00:25]} a5 {[%emt 0:06:07]} 43. Kc3 {[%emt 0:01:34]} Rf2 {[%emt 0:03:58]} 44. a3 {[%emt 0:08:55]} b5 {[%emt 0:03:27]} 45. Re5 {[%emt 0:00:55]} Rf3+ {[%emt 0:00:12]} 46. Kb2 {[%emt 0:01:00]} Rf2+ {[%emt 0:00:07]} 47. Kb1 {[%emt 0:00:46]} Rf1+ {[%emt 0:00:20]} 48. Kc2 {[%emt 0:00:10]} Rf2+ {[%emt 0:00:07]} 49. Kc1 {[%emt 0:00:10]} Rf1+ {[%emt 0:00:50]} 50. Kd2 {[%emt 0:00:11]} Ra1 {[%emt 0:01:57]} 51. Rxb5 {[%emt 0:00:10]} Rxa3 {[%emt 0:00:07]} 52. Kc2 {[%emt 0:00:16]} a4 {[%emt 0:00:15]} 53. Kb2 {[%emt 0:00:04]} Rxb3+ {[%emt 0:00:05]} 54. Rxb3 {[%emt 0:00:03]} axb3 {[%emt 0:00:06]} 55. Kxb3 {[%emt 0:00:02]} 1/2-1/2

[Event "Polugaevsky Memorial 2018"]
[Site "Samara"]
[Date "2018.07.12"]
[Round "3"]
[White "Postnikov, Daniil"]
[Black "Burmakin, Vladimir"]
[Result "0-1"]
[ECO "B01"]
[WhiteElo "2370"]
[BlackElo "2490"]
[Annotator "ChessBase"]
[PlyCount "128"]
[EventDate "2018.07.10"]
[EventType "swiss"]
[EventCountry "RUS"]
[SourceTitle "playchess.com"]
[Source "ChessBase"]
[SourceQuality "1"]
[TimeControl "40/5400+30:1800+30"]

1. e4 {[%emt 0:00:00]} d5 {[%emt 0:00:00]} 2. exd5 {[%emt 0:00:00]} Qxd5 {[%emt 0:00:00]} 3. Nc3 {[%emt 0:00:00]} Qd6 {[%emt 0:00:00]} 4. d4 {[%emt 0:02:01]} Nf6 {[%emt 0:00:25]} 5. Nf3 {[%emt 0:00:50]} c6 {[%emt 0:00:07]} 6. Bc4 {[%emt 0:07:38]} Be6 {[%emt 0:00:17]} 7. Bb3 {[%emt 0:00:37]} Bxb3 {[%emt 0:00:20]} 8. axb3 {[%emt 0:00:11]} e6 {[%emt 0:01:21]} 9. Ne5 {[%emt 0:03:49]} Be7 {[%emt 0:01:15]} 10. O-O {[%emt 0:11:49]} O-O {[%emt 0:00:19]} 11. Bf4 {[%emt 0:00:24]} Qd8 {[%emt 0:00:30]} 12. Qf3 {[%emt 0:03:38]} Nbd7 {[%emt 0:01:15]} 13. Rfd1 {[%emt 0:01:24]} Nd5 {[%emt 0:00:46]} 14. Nxd5 {[%emt 0:01:46]} exd5 {[%emt 0:00:06]} 15. Qg3 {[%emt 0:06:27]} Nf6 {[%emt 0:01:16]} 16. Bh6 {[%emt 0:03:38]} Ne8 {[%emt 0:00:13]} 17. Rd3 {[%emt 0:15:03]} f6 {[%emt 0:15:56]} 18. Nf3 {[%emt 0:03:46]} Kh8 {[%emt 0:20:18]} 19. Bf4 {[%emt 0:04:16]} g5 {[%emt 0:03:34]} 20. Bd2 {[%emt 0:03:23]} Qd7 {[%emt 0:00:09]} 21. h3 {[%emt 0:07:39]} Bd6 {[%emt 0:09:14]} 22. Qg4 {[%emt 0:00:19]} Qf7 {[%emt 0:00:08]} 23. Nh2 {[%emt 0:05:24]} Ng7 {[%emt 0:00:56]} 24. f4 {[%emt 0:01:59]} Qc7 {[%emt 0:00:42]} 25. b4 {[%emt 0:07:32]} Rae8 {[%emt 0:05:35]} 26. Nf1 {[%emt 0:02:21]} gxf4 {[%emt 0:04:34]} 27. Rf3 {[%emt 0:03:11]} Ne6 {[%emt 0:00:51]} 28. c3 {[%emt 0:00:27]} Rg8 {[%emt 0:10:10]} 29. Qf5 {[%emt 0:00:42]} Qg7 {[%emt 0:00:35]} 30. Rf2 {[%emt 0:01:37]} Ng5 {[%emt 0:01:16]} 31. Nh2 {[%emt 0:01:15]} Ne4 {[%emt 0:02:46]} 32. Ng4 {[%emt 0:00:03]} Nxf2 {[%emt 0:00:15]} 33. Kxf2 {[%emt 0:00:03]} Bb8 {[%emt 0:06:39]} 34. Qxf6 {[%emt 0:00:50]} h5 {[%emt 0:01:47]} 35. Qxg7+ {[%emt 0:01:13]} Rxg7 {[%emt 0:01:26]} 36. Nh2 {[%emt 0:00:08]} Rge7 {[%emt 0:03:46]} 37. Nf3 {[%emt 0:01:15]} Kh7 {[%emt 0:00:44]} 38. Rd1 {[%emt 0:00:16]} Kg6 {[%emt 0:01:30]} 39. Kf1 {[%emt 0:00:08]} Bc7 {[%emt 0:00:35]} 40. Ra1 {[%emt 0:00:00]} a6 {[%emt 0:00:00]} 41. Rd1 {[%emt 0:02:23]} Kf5 {[%emt 0:01:27]} 42. Nh4+ {[%emt 0:01:11]} Kf6 {[%emt 0:00:29]} 43. Nf3 {[%emt 0:00:03]} Ra8 {[%emt 0:01:44]} 44. Be1 {[%emt 0:01:48]} Ree8 {[%emt 0:00:09]} 45. Bd2 {[%emt 0:01:50]} a5 {[%emt 0:00:11]} 46. bxa5 {[%emt 0:00:33]} Rxa5 {[%emt 0:00:05]} 47. Ne1 {[%emt 0:00:14]} Ra2 {[%emt 0:07:10]} 48. Nd3 {[%emt 0:00:46]} Kf5 {[%emt 0:01:01]} 49. Kf2 {[%emt 0:01:17]} Rg8 {[%emt 0:00:07]} 50. Bc1 {[%emt 0:02:35]} Bd6 {[%emt 0:00:35]} 51. Ne1 {[%emt 0:05:07]} Ra1 {[%emt 0:00:24]} 52. Nf3 {[%emt 0:00:20]} Rga8 {[%emt 0:01:32]} 53. Ke2 {[%emt 0:01:08]} Re8+ {[%emt 0:00:54]} 54. Kf2 {[%emt 0:00:07]} b6 {[%emt 0:02:21]} 55. Nh4+ {[%emt 0:01:05]} Kf6 {[%emt 0:00:23]} 56. Nf3 {[%emt 0:00:07]} c5 {[%emt 0:00:56]} 57. Kf1 {[%emt 0:01:09]} Kf7 {[%emt 0:07:12]} 58. Ng5+ {[%emt 0:00:16]} Kg8 {[%emt 0:00:42]} 59. Nf3 {[%emt 0:00:09]} c4 {[%emt 0:02:38]} 60. Kf2 {[%emt 0:00:49]} b5 {[%emt 0:00:01]} 61. Rf1 {[%emt 0:01:33]} Ra2 {[%emt 0:01:20]} 62. Rd1 {[%emt 0:01:28]} b4 {[%emt 0:00:40]} 63. Kf1 {[%emt 0:00:43]} bxc3 {[%emt 0:00:43]} 64. bxc3 {[%emt 0:00:02]} Ra1 {[%emt 0:00:12]} 0-1

[Event "Polugaevsky Memorial 2018"]
[Site "Samara"]
[Date "2018.07.13"]
[Round "4"]
[White "Iljushin, Alexei"]
[Black "Mukhin, Alexander"]
[Result "0-1"]
[ECO "E06"]
[WhiteElo "2514"]
[BlackElo "2167"]
[Annotator "RC"]
[PlyCount "126"]
[EventDate "2018.07.10"]
[EventType "swiss"]
[EventCountry "RUS"]
[SourceTitle "playchess.com"]
[Source "ChessBase"]
[SourceQuality "1"]
[TimeControl "40/5400+30:1800+30"]

1. d4 {[%emt 0:00:00]} Nf6 {[%emt 0:00:00]} 2. c4 {[%emt 0:00:00]} e6 {[%emt 0:00:00]} 3. g3 {[%emt 0:00:00]} d5 {[%emt 0:00:00]} 4. Bg2 {[%emt 0:00:00]} Be7 {[%emt 0:00:00]} 5. Nf3 {[%emt 0:00:08]} O-O {[%emt 0:00:12]} 6. O-O {[%emt 0:00:14]} c5 {[%emt 0:00:19]} 7. cxd5 {[%emt 0:00:11]} Nxd5 {[%emt 0:00:42]} 8. e4 {[%emt 0:01:32]} Nf6 {[%emt 0:00:20]} 9. e5 {[%emt 0:02:51]} Nd5 {[%emt 0:00:12]} 10. a3 {[%emt 0:05:45]} a5 {[%emt 0:03:22]} 11. dxc5 {[%emt 0:05:32]} Bxc5 {[%emt 0:00:21]} 12. Ng5 {[%emt 0:01:26]} Be7 {[%emt 0:04:24]} 13. Qh5 {[%emt 0:02:47]} Bxg5 {[%emt 0:07:48]} 14. Bxg5 {[%emt 0:01:32]} Qc7 {[%emt 0:04:30]} 15. Re1 {[%emt 0:03:11]} Nc6 {[%emt 0:10:35]} 16. Nc3 {[%emt 0:02:27]} Nxc3 {[%emt 0:02:10]} 17. bxc3 {[%emt 0:03:41]} Ne7 {[%emt 0:02:45]} 18. Rad1 {[%emt 0:03:40]} Ng6 {[%emt 0:01:40]} 19. h4 {[%emt 0:04:44]} a4 {[%emt 0:02:30]} 20. Qe2 {[%emt 0:14:11]} Ra5 {[%emt 0:01:30]} 21. Qd2 {[%emt 0:00:20]} Rxe5 {[%emt 0:01:18]} 22. h5 {[%emt 0:01:34]} Rxe1+ {[%emt 0:01:59]} 23. Rxe1 {[%emt 0:00:11]} Ne7 {[%emt 0:01:15]} 24. h6 {[%emt 0:00:49]} Rd8 {[%emt 0:03:08]} 25. Qb2 {[%emt 0:02:04]} f6 {[%emt 0:03:41]} 26. Be3 {[%emt 0:01:48]} Nd5 {[%emt 0:03:09]} 27. Bd4 {[%emt 0:03:06]} e5 {[%emt 0:03:26]} 28. c4 {[%emt 0:02:17]} Qxc4 {[%emt 0:01:20]} 29. Bxe5 {[%emt 0:03:33]} fxe5 {[%emt 0:03:32]} 30. Qxe5 {[%emt 0:00:15]} Nf6 {[%emt 0:01:39]} 31. hxg7 {[%emt 0:00:21]} Qf7 {[%emt 0:00:55]} 32. Qa5 {[%emt 0:01:36]} Re8 {[%emt 0:01:40]} 33. Rc1 {[%emt 0:00:35]} Qd7 {[%emt 0:03:23]} 34. Bf3 {[%emt 0:01:34]} Qd3 {[%emt 0:02:16]} 35. Rc3 {[%emt 0:06:12]} Qd2 {[%emt 0:00:31]} 36. Qc5 {[%emt 0:01:02]} Qh6 {[%emt 0:01:39]} 37. Re3 {[%emt 0:00:44]} Qg6 {[%emt 0:01:49]} 38. Re5 {[%emt 0:05:42]} b6 {[%emt 0:02:34]} 39. Rxe8+ {[%emt 0:06:03]} Qxe8 {[%emt 0:00:09]} 40. Qxb6 {[%emt 0:00:00]} Kxg7 {[%emt 0:00:00]} 41. Qd4 {[%emt 0:00:58]} Bd7 {[%emt 0:00:55]} 42. Qc3 {[%emt 0:01:38]} Qe6 {[%emt 0:00:41]} 43. Ba8 {[%emt 0:00:53]} Qe7 {[%emt 0:00:43]} 44. Bf3 {[%emt 0:01:08]} h6 {[%emt 0:00:08]} 45. Ba8 {[%emt 0:00:21]} Qd6 {[%emt 0:00:16]} 46. Bf3 {[%emt 0:00:20]} Be6 {[%emt 0:00:08]} 47. Qc1 {[%emt 0:01:05]} Bb3 {[%emt 0:00:12]} 48. Be2 {[%emt 0:03:06]} Qe5 {[%emt 0:00:15]} 49. Bf3 {[%emt 0:00:49]} Bd5 {[%emt 0:00:16]} 50. Bxd5 {[%emt 0:01:09]} Qxd5 {[%emt 0:00:11]} 51. Qc7+ {[%emt 0:00:29]} Kg6 {[%emt 0:00:13]} 52. Qc2+ {[%emt 0:00:23]} Qe4 {[%emt 0:00:02]} 53. Qc1 {[%emt 0:00:20]} Nd7 {[%emt 0:00:21]} 54. Qc8 {[%emt 0:00:36]} Qe1+ {[%emt 0:00:19]} 55. Kg2 {[%emt 0:00:17]} Nf6 {[%emt 0:00:08]} 56. g4 {[%emt 0:02:47]} Qd2 {[%emt 0:00:49]} 57. Kg3 {[%emt 0:04:29]} Qd6+ {[%emt 0:00:25]} 58. f4 {[%emt 0:00:58]} Qxa3+ {[%emt 0:00:05]} 59. Kh4 {[%emt 0:00:07]} Qa2 {[%emt 0:02:04]} 60. f5+ {[%emt 0:01:47]} Kg7 {[%emt 0:00:08]} 61. Qb7+ {[%emt 0:01:54]} Qf7 {[%emt 0:00:05]} 62. Qb4 {[%emt 0:00:30]} Qa7 {[%emt 0:00:23]} 63. Qd2 {[%emt 0:01:13]} Qg1 {[%emt 0:00:15]} 0-1

[Event "Polugaevsky Memorial 2018"]
[Site "Samara"]
[Date "2018.07.13"]
[Round "4"]
[White "Karpenko, Artem"]
[Black "Kulaev, Maxim"]
[Result "0-1"]
[ECO "A61"]
[WhiteElo "2383"]
[BlackElo "2075"]
[Annotator "NA"]
[PlyCount "102"]
[EventDate "2018.07.10"]
[EventType "swiss"]
[EventCountry "RUS"]
[SourceTitle "playchess.com"]
[Source "ChessBase"]
[SourceQuality "1"]
[TimeControl "40/5400+30:1800+30"]

1. d4 {[%emt 0:00:00]} Nf6 {[%emt 0:00:00]} 2. c4 {[%emt 0:00:03]} c5 {[%emt 0:00:17]} 3. d5 {[%emt 0:00:04]} e6 {[%emt 0:00:23]} 4. Nc3 {[%emt 0:00:05]} exd5 {[%emt 0:00:08]} 5. cxd5 {[%emt 0:00:01]} d6 {[%emt 0:00:13]} 6. Nf3 {[%emt 0:00:10]} g6 {[%emt 0:00:25]} 7. Nd2 {[%emt 0:00:14]} Bg7 {[%emt 0:10:25]} 8. Nc4 {[%emt 0:00:17]} O-O {[%emt 0:00:08]} 9. Bg5 {[%emt 0:00:06]} h6 {[%emt 0:03:06]} 10. Bf4 {[%emt 0:00:10]} Ne8 {[%emt 0:02:30] A61: Modern Benoni: Nf3 without early e4} 11. h4 {[%emt 0:00:40]} (11. Qd2 g5 12. Bg3 Bxc3 13. Qxc3 f5 14. h4 f4 15. Bh2 b5 16. Nd2 g4 17. e3 Nc7 18. Bxf4 Nxd5 {½-½ (34) Koegler,K (2557)-Mueller,G (2603) ICCF email 2008}) 11... b6 {[%emt 0:06:07]} 12. a4 {[%emt 0:05:54]} f5 $146 {[%emt 0:09:53]} ({Predecessor:} 12... Ba6 13. Nb5 Nd7 14. Qd2 Bxb5 15. axb5 Kh7 16. e4 Qe7 17. Bd3 f5 18. O-O fxe4 {1-0 (32) Shabalov,A (2501)-Hilby,C (2181) Philadelphia 2014}) 13. Qd2 {[%emt 0:03:01]} Kh7 {[%emt 0:00:44]} 14. Nb5 {[%emt 0:13:58]} Rf6 {[%emt 0:05:15]} (14... Nd7 $14) 15. Bg5 {[%emt 0:02:14]} a6 {[%emt 0:00:13]} 16. Bxf6 {[%emt 0:04:51]} Bxf6 {[%emt 0:00:12]} 17. Nc3 {[%emt 0:00:24]} Ra7 {[%emt 0:00:18]} 18. h5 {[%emt 0:03:35]} g5 {[%emt 0:02:13]} 19. e3 {[%emt 0:00:50]} Nd7 {[%emt 0:01:43]} 20. Qc2 {[%emt 0:02:15]} Ne5 {[%emt 0:00:54]} 21. Nxe5 {[%emt 0:00:34]} Bxe5 {[%emt 0:00:19]} 22. Bd3 {[%emt 0:00:43]} Ng7 {[%emt 0:00:49]} 23. g4 {[%emt 0:07:00]} Qf8 {[%emt 0:01:20]} 24. gxf5 {[%emt 0:02:29]} Nxf5 {[%emt 0:00:17]} 25. O-O-O {[%emt 0:01:47]} Kh8 {[%emt 0:00:20]} 26. Ne2 {[%emt 0:05:25]} Bg7 {[%emt 0:05:22]} 27. Rdf1 $11 {[%emt 0:08:27]} b5 {[%emt 0:10:58]} 28. Ng3 {[%emt 0:12:00]} Ne7 29. f4 {[%emt 0:06:24]} g4 {[%emt 0:01:25]} 30. e4 {[%emt 0:02:00]} bxa4 {[%emt 0:07:02]} 31. Bc4 {[%emt 0:01:15]} Rb7 {[%emt 0:10:22]} 32. e5 {[%emt 0:00:19]} Nf5 {[%emt 0:07:35]} 33. Nxf5 {[%emt 0:05:07]} Bxf5 {[%emt 0:00:01]} 34. Qc3 {[%emt 0:01:04]} Be4 {[%emt 0:09:06]} 35. Rh2 {[%emt 0:00:37]} Qf5 {[%emt 0:06:37]} 36. Qg3 Rb4 {[%emt 0:05:32]} 37. Be2 {[%emt 0:05:30]} Bf3 {[%emt 0:00:59]} 38. Bxf3 {[%emt 0:03:01]} Qd3 {[%emt 0:00:57]} 39. Rff2 {[%emt 0:01:25]} gxf3 {[%emt 0:00:36]} 40. Qg6 {[%emt 0:00:00]} Rc4+ {[%emt 0:00:00]} 41. Rc2 {[%emt 0:05:29]} Rxc2+ {[%emt 0:02:38]} 42. Rxc2 {[%emt 0:00:02]} Qf1+ {[%emt 0:00:11]} 43. Kd2 {[%emt 0:00:00]} Qe2+ {[%emt 0:00:58]} 44. Kc3 {[%emt 0:00:02]} Qe3+ {[%emt 0:01:01]} 45. Qd3 {[%emt 0:00:04]} Qxf4 46. Rd2 {[%emt 0:12:00]} Qxe5+ {[%emt 0:02:14]} 47. Kc2 {[%emt 0:00:01]} Qxb2+ {[%emt 0:00:13]} 48. Kd1 {[%emt 0:00:00]} Qa1+ 49. Kc2 f2 {[%emt 0:06:48]} 50. Rxf2 {[%emt 0:04:28]} Qb2+ {[%emt 0:00:04]} 51. Kd1 {[%emt 0:00:01]} Qxf2 {[%emt 0:00:07]} 0-1

[Event "Polugaevsky Memorial 2018"]
[Site "Samara"]
[Date "2018.07.13"]
[Round "4"]
[White "Demianjuk, Alexander"]
[Black "Fakhrutdinov, Timur"]
[Result "1-0"]
[ECO "A40"]
[WhiteElo "2348"]
[BlackElo "2460"]
[Annotator "RC"]
[PlyCount "53"]
[EventDate "2018.07.10"]
[EventType "swiss"]
[EventCountry "RUS"]
[SourceTitle "playchess.com"]
[Source "ChessBase"]
[SourceQuality "1"]
[TimeControl "40/5400+30:1800+30"]

1. d4 {[%emt 0:00:00]} Nf6 {[%emt 0:00:00]} 2. c4 {[%emt 0:00:00]} e6 {[%emt 0:00:00]} 3. g3 {[%emt 0:00:00]} Bb4+ {[%emt 0:00:04]} 4. Bd2 {[%emt 0:00:00]} Be7 {[%emt 0:00:06]} 5. Bg2 {[%emt 0:00:04]} d5 {[%emt 0:00:05]} 6. cxd5 {[%emt 0:00:10]} exd5 {[%emt 0:01:01]} 7. Nc3 {[%emt 0:00:07]} O-O {[%emt 0:05:39]} 8. Nh3 {[%emt 0:00:14]} c6 {[%emt 0:21:29]} 9. O-O {[%emt 0:00:47]} Ne8 {[%emt 0:00:13]} 10. Nf4 {[%emt 0:15:50]} Nd6 {[%emt 0:00:27]} 11. b3 {[%emt 0:01:39]} Nd7 {[%emt 0:06:48]} 12. Bc1 {[%emt 0:03:54]} Nf6 {[%emt 0:03:45]} 13. Bb2 {[%emt 0:05:12]} h5 {[%emt 0:03:00]} 14. f3 {[%emt 0:05:13]} Nf5 {[%emt 0:06:56]} 15. Qd3 {[%emt 0:04:27]} c5 {[%emt 0:27:41]} 16. Bh3 {[%emt 0:29:10]} g6 {[%emt 0:08:45]} 17. dxc5 {[%emt 0:02:19]} Bxc5+ {[%emt 0:05:39]} 18. Kh1 {[%emt 0:00:14]} Be6 {[%emt 0:03:17]} 19. Rad1 {[%emt 0:05:39]} Qe7 {[%emt 0:01:57]} 20. Na4 {[%emt 0:11:44]} b6 {[%emt 0:02:05]} 21. Nxc5 {[%emt 0:03:43]} bxc5 {[%emt 0:00:05]} 22. e4 {[%emt 0:01:04]} dxe4 {[%emt 0:00:45]} 23. Qc3 {[%emt 0:02:54]} Nd4 {[%emt 0:00:53]} 24. Bxe6 {[%emt 0:00:08]} exf3 {[%emt 0:00:47]} 25. Bc4 {[%emt 0:03:13]} Qb7 {[%emt 0:00:32]} 26. Rxd4 {[%emt 0:00:19]} cxd4 {[%emt 0:00:16]} 27. Qxd4 {[%emt 0:00:05]} 1-0

[Event "Polugaevsky Memorial 2018"]
[Site "Samara"]
[Date "2018.07.13"]
[Round "4"]
[White "Sidorov, Anatoly"]
[Black "Matinian, Nikita"]
[Result "1-0"]
[ECO "A04"]
[WhiteElo "2302"]
[BlackElo "2510"]
[Annotator "ChessBase"]
[PlyCount "63"]
[EventDate "2018.07.10"]
[EventType "swiss"]
[EventCountry "RUS"]
[SourceTitle "playchess.com"]
[Source "ChessBase"]
[SourceQuality "1"]
[TimeControl "40/5400+30:1800+30"]

1. Nf3 {[%emt 0:00:00]} g6 {[%emt 0:00:00]} 2. g3 {[%emt 0:00:57]} Bg7 {[%emt 0:00:00]} 3. d4 {[%emt 0:00:34]} Nf6 {[%emt 0:00:00]} 4. Bg2 {[%emt 0:00:15]} O-O {[%emt 0:00:03]} 5. O-O {[%emt 0:00:28]} d6 {[%emt 0:00:05]} 6. b3 {[%emt 0:03:53]} Nc6 {[%emt 0:00:40]} 7. Bb2 {[%emt 0:00:28]} e5 {[%emt 0:00:17]} 8. dxe5 {[%emt 0:01:04]} Ng4 {[%emt 0:00:11]} 9. Qc1 {[%emt 0:02:08]} dxe5 {[%emt 0:11:06]} 10. h3 {[%emt 0:09:58]} Nh6 11. Rd1 Bd7 {[%emt 0:13:11]} 12. Nbd2 {[%emt 0:07:55]} Qc8 {[%emt 0:21:06]} 13. Kh2 {[%emt 0:01:16]} f5 {[%emt 0:06:52]} 14. Ng5 {[%emt 0:20:14]} Qe8 {[%emt 0:11:07]} 15. Nc4 {[%emt 0:04:10]} Rd8 {[%emt 0:01:37]} 16. Ba3 {[%emt 0:00:56]} Rf6 {[%emt 0:02:32]} 17. Ne3 {[%emt 0:00:32]} Nf7 {[%emt 0:13:51]} 18. Nd5 {[%emt 0:01:16]} Nxg5 {[%emt 0:07:35]} 19. Qxg5 {[%emt 0:00:24]} Qf7 {[%emt 0:00:29]} 20. Nxf6+ {[%emt 0:17:54]} Bxf6 {[%emt 0:00:04]} 21. Qc1 {[%emt 0:00:15]} e4 {[%emt 0:00:33]} 22. Bb2 {[%emt 0:00:09]} Ne5 {[%emt 0:00:12]} 23. f4 {[%emt 0:01:04]} exf3 {[%emt 0:00:43]} 24. exf3 {[%emt 0:01:31]} Qg7 25. Rb1 {[%emt 0:01:05]} f4 {[%emt 0:09:40]} 26. Qxf4 g5 27. Qc1 {[%emt 0:05:55]} Qh6 {[%emt 0:01:01]} 28. f4 Ng4+ 29. Kg1 {[%emt 0:02:53]} Bxb2 {[%emt 0:00:55]} 30. Bd5+ {[%emt 0:01:03]} Kf8 {[%emt 0:00:36]} 31. Qxb2 {[%emt 0:00:16]} Nf6 {[%emt 0:00:33]} 32. Qa3+ {[%emt 0:01:09]} 1-0